bitfinex-derivatives/quotes_SOLF0:USTF0_20241027
["timestamp","ask_amount","ask_price","bid_price","bid_amount"]
[1730015408610,4.02,173.49,173.44,7.09946863]
[1730015409497,4.02,173.49,173.45,2.8859]
[1730015409805,4.02,173.49,173.44,7.09946863]
[1730015410109,7.09946863,173.5,173.47,2.8855]
[1730015410298,4.02,173.49,173.47,2.8855]
[1730015418105,4.02,173.49,173.44,7.09946863]
[1730015418408,11.11946863,173.49,173.48,2.8854]
[1730015421113,2.8848,173.52,173.48,2.8854]
[1730015421314,4.02,173.49,173.48,2.8854]
[1730015423715,2.8848,173.53,173.49,2.8851]
[1730015423917,7.09946863,173.51,173.42,4.02]
[1730015424120,7.09946863,173.5,173.43,7.09946863]
[1730015424422,7.09946863,173.48,173.43,7.09946863]
[1730015425217,7.09946863,173.48,173.46,2.8857]
[1730015425813,7.09946863,173.48,173.44,2.886]
[1730015426013,7.09946863,173.48,173.43,7.09946863]
[1730015426321,7.09946863,173.48,173.45,2.8858]
[1730015426525,11.11946863,173.47,173.41,1.1873]
[1730015427407,4.02,173.47,173.41,1.1873]
[1730015427613,11.11946863,173.47,173.44,2.886]
[1730015429417,9.98546863,173.45,173.41,2.8865]
[1730015430320,9.98546863,173.45,173.39,7.09946863]
[1730015430527,7.09946863,173.45,173.42,2.8864]
[1730015433518,7.09946863,173.45,173.38,1.2463]
[1730015433519,7.09946863,173.44,173.38,1.2463]
[1730015433724,4.02,173.43,173.4,2.8868]
[1730015434116,7.09946863,173.42,173.39,2.8869]
[1730015435327,7.09946863,173.42,173.38,1.2463]
[1730015435526,7.09946863,173.42,173.4,2.8868]
[1730015440822,11.11946863,173.43,173.4,2.8868]
[1730015444533,4.02,173.43,173.39,7.09946863]
[1730015444718,4.02,173.43,173.42,2.8864]
[1730015449738,11.11946863,173.43,173.42,2.8864]
[1730015449931,11.11946863,173.43,173.4,2.8866]
[1730015450138,7.09946863,173.42,173.4,2.8866]
[1730015450636,7.09946863,173.42,173.38,1.2463]
[1730015450937,7.09946863,173.42,173.41,2.8866]
[1730015460346,11.11946863,173.43,173.41,2.8866]
[1730015464657,4.02,173.43,173.39,7.09946863]
[1730015464960,4.02,173.43,173.42,2.8864]
[1730015466449,7.09946863,173.44,173.39,7.09946863]
[1730015466654,11.11946863,173.44,173.43,2.8863]
[1730015468059,7.09946863,173.44,173.43,2.8863]
[1730015468256,4.02,173.45,173.42,2.8864]
[1730015468456,4.02,173.45,173.41,7.09946863]
[1730015469264,4.02,173.45,173.44,2.8861]
[1730015472863,11.11946863,173.45,173.44,2.8861]
[1730015490665,1.2244,173.52,173.39,7.09946863]
[1730015490865,7.09946863,173.5,173.48,2.8853]
[1730015491577,7.09946863,173.5,173.49,2.8853]
[1730015491771,11.11946863,173.5,173.49,2.8853]
[1730015491972,7.09946863,173.5,173.49,2.8853]
[1730015492173,11.11946863,173.5,173.49,2.8853]
[1730015505284,11.11946863,173.5,173.43,2.8862]
[1730015505285,2.8857,173.47,173.43,2.8862]
[1730015505481,11.11946863,173.46,173.4,7.09946863]
[1730015505672,4.02,173.45,173.4,7.09946863]
[1730015507885,4.02,173.45,173.43,2.8861]
[1730015511290,4.02,173.45,173.4,7.09946863]
[1730015512185,4.02,173.45,173.43,2.8861]
[1730015513388,4.02,173.45,173.4,7.09946863]
[1730015513688,4.02,173.45,173.44,2.8861]
[1730015517390,11.11946863,173.45,173.44,2.8861]
[1730015520593,14.00556863,173.45,173.38,3.6563]
[1730015520789,7.09946863,173.42,173.39,6.48975627]
[1730015521097,7.09946863,173.42,173.39,2.8868]
[1730015521697,7.09946863,173.41,173.39,2.8868]
[1730015521884,7.09946863,173.41,173.4,2.8868]
[1730015524197,7.09946863,173.42,173.4,2.8868]
[1730015527002,4.02,173.41,173.4,2.8868]
[1730015530497,11.11946863,173.41,173.37,366.15990776]
[1730015530696,11.11946863,173.41,173.38,1.44389777]
[1730015530897,11.11946863,173.41,173.37,366.15990776]
[1730015531501,11.11946863,173.41,173.38,2.887]
[1730015533400,7.09946863,173.39,173.37,366.15990776]
[1730015533606,7.09946863,173.38,173.37,254.44925]
[1730015538809,9.98656863,173.38,173.37,254.44925]
[1730015539718,7.09946863,173.38,173.37,254.44925]
[1730015540021,9.98656863,173.38,173.37,254.44925]
[1730015541922,1.2907,173.4,173.37,257.33655]
[1730015542117,4.02,173.39,173.37,254.44925]
[1730015543311,4.02,173.39,173.37,257.33645]
[1730015544210,4.02,173.39,173.38,2.8871]
[1730015550020,4.0943,173.48,173.44,2.886]
[1730015550211,4.0943,173.48,173.38,7.09946863]
[1730015550212,7.09946863,173.45,173.38,7.09946863]
[1730015550412,7.09946863,173.42,173.38,7.09946863]
[1730015550611,4.02,173.41,173.4,2.8868]
[1730015556027,11.11946863,173.41,173.38,2.8871]
[1730015556234,7.09946863,173.4,173.38,2.8871]
[1730015561221,9.98646863,173.39,173.37,254.44925]
[1730015563531,2.8871,173.38,173.37,254.44925]
[1730015563823,2.8871,173.38,173.37,185.57230796]
[1730015564627,2.8871,173.38,173.34,2.8877]
[1730015564827,7.09946863,173.35,173.34,2.8877]
[1730015565436,7.09946863,173.35,173.32,5.02480703]
[1730015565437,9.98706863,173.35,173.31,2.8882]
[1730015565626,7.09946863,173.33,173.31,2.8882]
[1730015565936,11.11946863,173.33,173.31,2.8882]
[1730015566122,11.11946863,173.33,173.32,2.8881]
[1730015566320,11.11946863,173.33,173.25,3.7137]
[1730015566321,11.11946863,173.33,173.28,6.4722059]
[1730015566633,11.11946863,173.33,173.29,6.4722059]
[1730015566825,11.11946863,173.33,173.3,1.44433176]
[1730015567025,11.11946863,173.33,173.27,7.09946863]
[1730015567233,11.11946863,173.33,173.31,2.8882]
[1730015574528,11.11946863,173.33,173.3,252.6384]
[1730015574728,11.11946863,173.33,173.32,2.8881]
[1730015577530,2.8869,173.4,173.36,2.8874]
[1730015577735,11.11946863,173.39,173.36,2.8874]
[1730015579341,7.09946863,173.39,173.36,2.8874]
[1730015579530,4.02,173.38,173.36,2.8874]
[1730015584537,4.02,173.38,173.37,2.8873]
[1730015602455,7.09946863,173.4,173.38,2.887]
[1730015602753,4.0,173.39,173.38,2.887]
[1730015603142,8.6501,173.61,173.38,7.09946863]
[1730015603347,2.8856,173.47,173.43,2.8862]
[1730015603551,7.09946863,173.45,173.43,2.8862]
[1730015604455,7.09946863,173.44,173.31,3.7443]
[1730015604757,7.09946863,173.42,173.4,2.8867]
[1730015606250,7.09946863,173.42,173.31,3.7443]
[1730015606444,7.09946863,173.4,173.38,2.8869]
[1730015607354,7.09946863,173.4,173.39,2.8869]
[1730015611760,4.0,173.43,173.4,2.8866]
[1730015611957,11.09946863,173.43,173.36,7.09946863]
[1730015612156,11.09946863,173.43,173.37,7.73317873]
[1730015612358,11.09946863,173.43,173.38,6.48187873]
[1730015612559,11.09946863,173.43,173.37,1.2513]
[1730015612758,11.09946863,173.43,173.38,6.48121275]
[1730015613057,11.09946863,173.43,173.37,1.2513]
[1730015613258,11.09946863,173.43,173.38,6.48126097]
[1730015613456,11.09946863,173.43,173.4,2.8867]
[1730015613655,11.09946863,173.43,173.37,1.2513]
[1730015613960,4.0,173.43,173.39,7.09946863]
[1730015614149,4.0,173.43,173.42,2.8864]
[1730015616357,4.0,173.49,173.47,2.8855]
[1730015616565,11.09946863,173.49,173.47,2.8855]
[1730015620963,11.09946863,173.49,173.42,7.09946863]
[1730015621158,7.09946863,173.47,173.45,2.8859]
[1730015631472,9.98506863,173.47,173.44,2.8861]
[1730015631667,4.0,173.49,173.4,7.09946863]
[1730015631868,7.09946863,173.44,173.38,8.31166863]
[1730015632171,11.13946863,173.44,173.41,2.8865]
[1730015633264,14.02566863,173.44,173.41,2.8865]
[1730015634466,7.09946863,173.42,173.39,2.8868]
[1730015638970,7.09946863,173.42,173.36,7.09946863]
[1730015639172,11.13946863,173.44,173.41,2.8866]
[1730015639975,14.02556863,173.44,173.41,2.8866]
[1730015641983,6.9261,173.44,173.41,2.8866]
[1730015642183,4.04,173.44,173.43,2.8863]
[1730015642483,4.04,173.45,173.43,2.8863]
[1730015642687,1.2283,173.48,173.42,7.09946863]
[1730015642880,4.04,173.47,173.43,7.09946863]
[1730015643086,56.1,173.51,173.45,7.09946863]
[1730015643087,4.04,173.48,173.45,7.09946863]
[1730015644090,4.04,173.48,173.46,2.8858]
[1730015644779,11.13946863,173.48,173.46,2.8858]
[1730015644983,11.13946863,173.48,173.44,2.8859]
[1730015646582,9.98516863,173.47,173.43,2.8862]
[1730015652589,9.98516863,173.47,173.44,2.8861]
[1730015663594,9.98516863,173.47,173.43,2.8862]
[1730015663795,7.09946863,173.47,173.43,2.8862]
[1730015663994,2.8858,173.46,173.43,2.8862]
[1730015668406,7.09946863,173.47,173.43,2.8862]
[1730015668702,9.98516863,173.47,173.43,2.8862]
[1730015671296,2.8857,173.47,173.43,2.8862]
[1730015677013,2.8861,173.44,173.4,1.1815]
[1730015677209,2.8861,173.44,173.41,6.49104663]
[1730015677414,6.8861,173.44,173.42,1.44365422]
[1730015677713,6.8861,173.44,173.4,1.1815]
[1730015678105,6.8861,173.44,173.41,6.49224178]
[1730015678410,6.8861,173.44,173.41,2.8865]
[1730015680811,7.09946863,173.43,173.4,4.0682]
[1730015681012,7.09946863,173.43,173.41,6.4936837]
[1730015681212,7.09946863,173.43,173.4,4.0682]
[1730015681405,7.09946863,173.43,173.41,6.49392188]
[1730015681611,7.09946863,173.43,173.4,4.0682]
[1730015682015,7.09946863,173.43,173.41,5.05032544]
[1730015682319,7.09946863,173.43,173.4,4.0682]
[1730015682512,7.09946863,173.43,173.41,6.49444634]
[1730015682712,7.09946863,173.43,173.4,4.0682]
[1730015682917,7.09946863,173.43,173.41,6.49450207]
[1730015683119,7.09946863,173.43,173.4,4.0682]
[1730015683321,7.09946863,173.43,173.41,6.49449887]
[1730015683510,7.09946863,173.43,173.4,4.0682]
[1730015683817,7.09946863,173.43,173.41,6.49324424]
[1730015684018,7.09946863,173.43,173.41,2.8866]
[1730015684218,7.09946863,173.43,173.37,2.5235]
[1730015684420,9.98586863,173.43,173.38,13.59257834]
[1730015684724,9.98586863,173.43,173.39,9.37990971]
[1730015684906,9.98586863,173.43,173.4,6.49310971]
[1730015685218,9.98586863,173.43,173.41,1.44373398]
[1730015685415,9.98586863,173.43,173.38,7.09946863]
[1730015685416,9.98586863,173.43,173.4,2.8868]
[1730015685614,9.98586863,173.43,173.41,6.49292361]
[1730015685813,9.98586863,173.43,173.4,2.8868]
[1730015686014,9.98586863,173.43,173.41,6.4929236]
[1730015686219,9.98586863,173.43,173.4,2.8868]
[1730015686415,9.98586863,173.43,173.41,1.44376848]
[1730015686618,9.98586863,173.43,173.4,2.8868]
[1730015686922,9.98586863,173.43,173.41,1.44376848]
[1730015687221,9.98586863,173.43,173.4,2.8868]
[1730015687424,9.98586863,173.43,173.41,1.44376848]
[1730015687724,9.98586863,173.43,173.4,2.8868]
[1730015687922,9.98586863,173.43,173.41,1.44376848]
[1730015688124,9.98586863,173.43,173.4,2.8868]
[1730015689022,7.09946863,173.43,173.38,7.09946863]
[1730015689221,7.09946863,173.43,173.4,2.8867]
[1730015692027,7.09946863,173.43,173.41,1.44376721]
[1730015692228,7.09946863,173.43,173.4,2.8867]
[1730015698429,7.09946863,173.43,173.38,7.09946863]
[1730015698630,2.8864,173.43,173.4,2.8867]
[1730015699234,2.8864,173.43,173.39,2.8869]
[1730015699430,2.8864,173.43,173.4,1.44380367]
[1730015699624,2.8864,173.43,173.39,2.8869]
[1730015700334,7.09946863,173.41,173.35,7.09946863]
[1730015700538,4.0,173.4,173.36,6.49429771]
[1730015700726,4.0,173.4,173.37,6.49429771]
[1730015700928,4.0,173.4,173.38,6.49429771]
[1730015701130,4.0,173.4,173.37,2.8872]
[1730015701339,4.0,173.4,173.38,6.49443984]
[1730015701543,6.8868,173.4,173.37,2.8872]
[1730015701837,6.8868,173.4,173.38,1.44393385]
[1730015702043,6.8868,173.4,173.37,2.8872]
[1730015702227,2.8869,173.39,173.38,1.44393385]
[1730015702430,2.8869,173.39,173.35,9.98706863]
[1730015702639,2.8869,173.39,173.36,6.49469653]
[1730015702841,2.8869,173.39,173.37,6.49469653]
[1730015703046,9.98636863,173.39,173.35,2.8876]
[1730015703246,7.09946863,173.39,173.36,6.49509926]
[1730015703445,7.09946863,173.38,173.3,2.4309]
[1730015703747,7.09946863,173.36,173.31,13.59478509]
[1730015703940,11.09946863,173.36,173.32,9.38331646]
[1730015704143,11.09946863,173.36,173.33,6.49531646]
[1730015704337,11.09946863,173.36,173.34,1.4441097]
[1730015704539,11.09946863,173.36,173.32,2.888]
[1730015704748,11.09946863,173.36,173.33,6.49481054]
[1730015704945,11.09946863,173.36,173.32,2.888]
[1730015705135,11.09946863,173.36,173.33,6.49508277]
[1730015705343,11.09946863,173.36,173.32,2.888]
[1730015705542,11.09946863,173.36,173.33,6.49332646]
[1730015705846,11.09946863,173.36,173.32,2.888]
[1730015706048,11.09946863,173.36,173.33,6.49285804]
[1730015706243,11.09946863,173.36,173.32,2.888]
[1730015706642,11.09946863,173.36,173.33,1.44424622]
[1730015706845,11.09946863,173.36,173.32,2.888]
[1730015707045,11.09946863,173.36,173.33,1.44422161]
[1730015707250,11.09946863,173.36,173.32,2.888]
[1730015707553,13.98696863,173.36,173.32,2.888]
[1730015708549,11.09946863,173.36,173.3,9.53036863]
[1730015708746,11.09946863,173.36,173.31,6.48777793]
[1730015708950,11.09946863,173.36,173.32,6.48777793]
[1730015709150,11.09946863,173.36,173.3,9.53036863]
[1730015709350,11.09946863,173.36,173.33,2.8879]
[1730015710550,4.0,173.36,173.35,2.8876]
[1730015710853,4.0,173.36,173.35,9.98706863]
[1730015711852,4.0,173.39,173.35,7.09946863]
[1730015712058,4.0,173.39,173.38,2.887]
[1730015712757,4.0,173.39,173.34,7.09946863]
[1730015713448,4.0,173.39,173.36,2.8874]
[1730015714052,11.09946863,173.39,173.36,2.8874]
[1730015716364,11.09946863,173.39,173.37,2.8871]
[1730015716564,11.09946863,173.39,173.34,7.09946863]
[1730015717458,11.09946863,173.39,173.36,2.8874]
[1730015719267,13.98646863,173.39,173.36,2.8874]
[1730015721262,7.09946863,173.37,173.36,2.8874]
[1730015721463,7.09946863,173.37,173.34,2.8876]
[1730015725467,7.09946863,173.36,173.34,2.8876]
[1730015725679,4.0,173.35,173.32,2.888]
[1730015726176,4.0,173.35,173.3,2.4309]
[1730015726373,4.0,173.35,173.31,6.48092571]
[1730015726565,4.0,173.35,173.32,1.44415242]
[1730015726771,4.0,173.35,173.3,1.2009]
[1730015726972,4.0,173.35,173.31,6.48106716]
[1730015727274,4.0,173.35,173.32,4.33223238]
[1730015727474,4.0,173.35,173.32,2.888]
[1730015729275,11.09946863,173.35,173.32,2.888]
[1730015730371,11.09946863,173.35,173.29,192.79991863]
[1730015730670,11.09946863,173.35,173.3,6.48002195]
[1730015730979,11.09946863,173.35,173.31,1.44426741]
[1730015731279,11.09946863,173.35,173.32,2.888]
[1730015737681,7.09946863,173.33,173.29,185.70045]
[1730015737978,7.09946863,173.3,173.29,185.70045]
[1730015738286,13.98786863,173.3,173.29,185.70045]
[1730015739080,11.09946863,173.3,173.29,185.70045]
[1730015741884,11.09946863,173.3,173.29,188.58905]
[1730015741885,4.0,173.3,173.29,188.58905]
[1730015742090,7.09946863,173.34,173.29,192.79991863]
[1730015742287,11.09946863,173.34,173.29,192.79991863]
[1730015743386,11.09946863,173.34,173.32,2.888]
[1730015754502,4.0,173.34,173.32,2.888]
[1730015756498,4.0,173.34,173.33,2.8879]
[1730015756698,4.0,173.34,173.3,6.4796551]
[1730015756905,4.0,173.34,173.29,192.79991863]
[1730015757099,4.0,173.34,173.31,2.8882]
[1730015759206,4.0,173.34,173.29,192.79991863]
[1730015759396,2.8881,173.33,173.3,6.48141756]
[1730015759601,2.8881,173.33,173.29,195.68851863]
[1730015759909,2.8881,173.33,173.3,6.48160561]
[1730015760104,2.8881,173.33,173.29,195.68851863]
[1730015760297,2.8881,173.33,173.3,6.48217614]
[1730015760500,6.8878,173.34,173.3,2.8883]
[1730015762701,6.8878,173.34,173.31,2.8883]
[1730015765309,13.98726863,173.34,173.3,2.8884]
[1730015768214,13.98726863,173.34,173.31,1.44441772]
[1730015768415,13.98726863,173.34,173.3,2.8884]
[1730015768713,13.98726863,173.34,173.31,1.44441785]
[1730015768912,13.98726863,173.34,173.3,2.8884]
[1730015769215,13.98726863,173.34,173.31,1.44441785]
[1730015769414,13.98726863,173.34,173.3,2.8884]
[1730015769605,13.98726863,173.34,173.31,1.44441658]
[1730015769809,13.98726863,173.34,173.3,2.8884]
[1730015770009,13.98726863,173.34,173.31,1.44441658]
[1730015770209,13.98726863,173.34,173.3,2.8884]
[1730015770410,13.98726863,173.34,173.31,6.4902202]
[1730015770610,13.98726863,173.34,173.3,2.8884]
[1730015770818,13.98726863,173.34,173.31,6.4905915]
[1730015771020,13.98726863,173.34,173.3,2.8884]
[1730015771215,13.98726863,173.34,173.31,5.04643086]
[1730015771516,13.98726863,173.34,173.3,2.8884]
[1730015771720,13.98726863,173.34,173.31,6.49102676]
[1730015771910,13.98726863,173.34,173.3,2.8884]
[1730015772214,6.8878,173.34,173.31,9.37922491]
[1730015772416,13.98726863,173.34,173.31,2.8882]
[1730015781324,4.0,173.34,173.29,185.70045]
[1730015781620,4.0,173.34,173.32,2.8879]
[1730015789534,11.09946863,173.34,173.32,2.8879]
[1730015799040,11.09946863,173.34,173.29,194.00701863]
[1730015799240,11.09946863,173.34,173.31,2.8882]
[1730015814952,11.09946863,173.34,173.32,1.44453014]
[1730015815152,11.09946863,173.34,173.31,2.8882]
[1730015831264,13.98726863,173.34,173.31,2.8882]
[1730015837669,11.09946863,173.34,173.29,188.58905]
[1730015837856,11.09946863,173.34,173.3,6.50811895]
[1730015838059,11.09946863,173.34,173.29,188.58905]
[1730015838261,7.09946863,173.33,173.3,6.50822316]
[1730015838468,7.09946863,173.31,173.29,185.70045]
[1730015838770,11.09946863,173.3,173.29,185.70045]
[1730015838970,11.09946863,173.3,173.29,192.20907553]
[1730015839164,11.09946863,173.3,173.29,187.14525265]
[1730015839665,11.09946863,173.3,173.29,185.70045]
[1730015840264,13.98786863,173.3,173.29,185.70045]
[1730015849273,13.98786863,173.3,173.29,116.82350796]
[1730015849478,13.98786863,173.3,173.29,114.88540796]
[1730015849678,13.98786863,173.3,173.29,110.11960796]
[1730015849870,13.98786863,173.3,173.29,94.75481628]
[1730015850870,2.8894,173.25,173.2,2.89]
[1730015851178,7.09946863,173.23,173.2,2.89]
[1730015852677,7.09946863,173.23,173.18,2.4444]
[1730015852878,7.09946863,173.21,173.18,2.4444]
[1730015854285,7.09946863,173.21,173.2,2.8901]
[1730015856783,7.09946863,173.21,173.2,7.94979914]
[1730015857587,7.09946863,173.23,173.2,7.94979914]
[1730015857888,7.09946863,173.23,173.21,5.05969914]
[1730015858188,7.09946863,173.23,173.21,2.8899]
[1730015858384,2.8888,173.28,173.22,7.09946863]
[1730015858577,56.14,173.31,173.23,13.59942031]
[1730015858780,11.09946863,173.3,173.25,9.98876863]
[1730015858980,2.8886,173.29,173.25,9.98876863]
[1730015859588,4.0,173.28,173.25,9.98876863]
[1730015860284,56.14,173.31,173.25,9.98876863]
[1730015860490,56.14,173.31,173.29,2.8885]
[1730015860691,4.0,173.3,173.29,2.8885]
[1730015861289,2.8877,173.35,173.29,2.8885]
[1730015861484,7.09946863,173.32,173.29,2.8885]
[1730015861885,4.0,173.31,173.29,2.8885]
[1730015862287,2.8879,173.34,173.29,2.8885]
[1730015862494,11.09946863,173.33,173.29,2.8885]
[1730015862989,11.09946863,173.33,173.29,7.09946863]
[1730015863289,56.14,173.4,173.31,2.8881]
[1730015863290,4.0,173.32,173.31,2.8881]
[1730015869903,56.14,173.4,173.31,7.09946863]
[1730015870109,7.09946863,173.38,173.31,7.09946863]
[1730015870900,2.8874,173.37,173.33,2.8878]
[1730015871603,7.09946863,173.36,173.33,2.8878]
[1730015871911,4.0,173.35,173.33,2.8878]
[1730015872807,13.98716863,173.35,173.31,2.8882]
[1730015877512,13.98716863,173.35,173.31,9.98766863]
[1730015877704,6.8877,173.35,173.31,9.98766863]
[1730015883603,6.8877,173.35,173.31,7.09946863]
[1730015883809,6.8877,173.35,173.32,2.8881]
[1730015886517,4.0,173.35,173.33,2.8879]
[1730015887612,4.0,173.35,173.32,7.09946863]
[1730015887613,4.0,173.35,173.32,9.98756863]
[1730015905942,2.8875,173.36,173.32,9.98756863]
[1730015906133,4.0,173.35,173.32,9.98756863]
[1730015907641,4.0,173.35,173.33,2.8879]
[1730015908444,4.0,173.35,173.25,3.6776]
[1730015908644,4.0,173.35,173.32,9.98746863]
[1730015914144,4.0,173.35,173.32,2.888]
[1730015914346,6.8877,173.35,173.31,2.8882]
[1730015918448,4.0,173.35,173.25,3.6776]
[1730015918649,7.09946863,173.34,173.3,9.98786863]
[1730015919450,9.98736863,173.34,173.3,9.98786863]
[1730015924651,9.98736863,173.34,173.3,7.09946863]
[1730015924851,9.98736863,173.34,173.31,2.8882]
[1730015928666,2.888,173.33,173.29,9.98796863]
[1730015929165,2.888,173.33,173.3,1.44471328]
[1730015929466,2.888,173.33,173.29,9.98796863]
[1730015929661,2.888,173.33,173.3,6.5069292]
[1730015929862,2.888,173.33,173.29,9.98796863]
[1730015930165,2.888,173.33,173.3,6.50691931]
[1730015930366,2.888,173.33,173.29,9.98796863]
[1730015930562,2.888,173.33,173.3,6.5072908]
[1730015930868,2.888,173.33,173.29,9.98796863]
[1730015931170,2.888,173.33,173.3,6.5072908]
[1730015931472,2.888,173.33,173.29,9.98796863]
[1730015931766,4.0,173.32,173.3,13.60682325]
[1730015931969,4.0,173.32,173.31,6.50735462]
[1730015933364,4.0,173.32,173.31,9.39565462]
[1730015934170,2.0621,173.32,173.31,10.65395462]
[1730015934671,2.8875,173.36,173.33,2.8879]
[1730015934971,4.0,173.35,173.33,2.8879]
[1730015936770,4.0,173.35,173.32,2.888]
[1730015937974,4.0,173.35,173.32,2.8881]
[1730015943770,4.0,173.34,173.33,2.8878]
[1730015944572,2.8869,173.4,173.36,2.8873]
[1730015944777,4.0,173.39,173.36,2.8873]
[1730015945278,2.8873,173.37,173.33,2.8879]
[1730015945463,9.98676863,173.37,173.32,9.56606863]
[1730015945672,9.98676863,173.37,173.33,6.5061238]
[1730015945878,9.98676863,173.37,173.32,9.56606863]
[1730015946183,7.09946863,173.37,173.33,6.50612576]
[1730015946475,7.09946863,173.37,173.32,9.56606863]
[1730015946668,7.09946863,173.37,173.33,6.50620581]
[1730015946869,7.09946863,173.37,173.32,9.56606863]
[1730015947074,7.09946863,173.37,173.33,6.50612355]
[1730015947271,9.98686863,173.37,173.33,2.8879]
[1730015949178,7.09946863,173.37,173.32,2.4666]
[1730015949388,9.98706863,173.36,173.33,6.50502386]
[1730015949572,4.0,173.35,173.32,2.888]
[1730015949772,4.0,173.35,173.33,6.50519713]
[1730015950076,4.0,173.35,173.32,2.888]
[1730015950271,4.0,173.35,173.33,6.50523575]
[1730015950473,4.0,173.35,173.32,2.888]
[1730015950677,4.0,173.35,173.33,6.50515109]
[1730015950870,4.0,173.35,173.32,2.888]
[1730015951071,11.09946863,173.35,173.33,6.50495601]
[1730015951380,11.09946863,173.35,173.32,2.888]
[1730015951573,11.09946863,173.35,173.33,6.50505079]
[1730015951774,11.09946863,173.35,173.32,2.888]
[1730015951970,11.09946863,173.35,173.33,6.50504552]
[1730015952275,11.09946863,173.35,173.32,2.888]
[1730015952474,11.09946863,173.35,173.33,6.50495425]
[1730015952779,11.09946863,173.35,173.32,2.888]
[1730015952983,11.09946863,173.35,173.33,6.50498052]
[1730015953183,11.09946863,173.35,173.32,2.888]
[1730015953371,11.09946863,173.35,173.33,5.06012504]
[1730015953670,11.09946863,173.35,173.32,2.888]
[1730015968588,7.09946863,173.34,173.32,2.888]
[1730015968775,4.0,173.33,173.32,2.888]
[1730015969175,6.888,173.33,173.31,1.2583]
[1730015969380,7.09946863,173.32,173.26,9.59316863]
[1730015969682,7.09946863,173.32,173.27,7.75492899]
[1730015969882,7.09946863,173.32,173.28,6.50262899]
[1730015970083,7.09946863,173.32,173.29,6.50262899]
[1730015970386,7.09946863,173.32,173.3,6.50262899]
[1730015970586,7.09946863,173.32,173.27,1.2523]
[1730015970782,7.09946863,173.32,173.3,2.8884]
[1730015972493,7.09946863,173.32,173.28,2.8886]
[1730015972686,7.09946863,173.32,173.29,6.50267373]
[1730015972886,9.98766863,173.32,173.3,6.50267373]
[1730015973085,9.98766863,173.32,173.28,2.8886]
[1730015973285,9.98766863,173.32,173.29,6.50272465]
[1730015973490,9.98766863,173.32,173.3,6.50272465]
[1730015973690,9.98766863,173.32,173.27,1.2523]
[1730015973884,9.98766863,173.32,173.29,2.8886]
[1730015974091,9.98766863,173.32,173.3,6.5026356]
[1730015974289,9.98766863,173.32,173.29,2.8886]
[1730015974486,9.98766863,173.32,173.3,6.50255497]
[1730015974791,9.98766863,173.32,173.29,2.8886]
[1730015974986,9.98766863,173.32,173.3,6.50292184]
[1730015975190,9.98766863,173.32,173.29,2.8886]
[1730015975388,9.98766863,173.32,173.3,6.50287785]
[1730015975687,9.98766863,173.32,173.29,2.8886]
[1730015978897,7.09946863,173.32,173.29,2.8886]
[1730015993803,9.98766863,173.32,173.27,1.2523]
[1730015994009,9.98766863,173.32,173.28,9.38892494]
[1730015994203,9.98766863,173.32,173.29,6.50022494]
[1730015994404,9.98766863,173.32,173.28,2.8887]
[1730016000153,9.98766863,173.32,173.27,1.2523]
[1730016000154,9.98756863,173.32,173.29,2.8886]
[1730016000349,9.98756863,173.32,173.29,7.94293388]
[1730016000577,2.8881,173.32,173.29,2.8886]
[1730016004023,2.8881,173.32,173.27,1.2523]
[1730016004024,2.8886,173.3,173.27,1.2523]
[1730016004226,4.0,173.33,173.28,6.49609579]
[1730016004432,4.0,173.33,173.27,1.2523]
[1730016004618,4.0,173.33,173.28,6.49586098]
[1730016004925,4.0,173.33,173.3,2.8883]
[1730016005727,4.0,173.33,173.31,2.8882]
[1730016006831,4.0,173.33,173.27,1.2523]
[1730016007020,4.0,173.33,173.28,6.49246874]
[1730016007216,4.0,173.33,173.29,1.44472182]
[1730016007420,4.0,173.33,173.27,1.2523]
[1730016007622,4.0,173.33,173.28,6.49185369]
[1730016007825,4.0,173.33,173.3,2.8883]
[1730016008027,4.0,173.33,173.27,1.2523]
[1730016008236,4.0,173.33,173.28,6.49043706]
[1730016008429,4.0,173.33,173.3,2.8883]